Workbook

Sheet Jurnal de parcurs
B1: JURNAL DE PARCURS
C11: DECONTABIL | E11: TOTAL
C12: KILOMETRI | E12: DECONTARE
C17: 2012-05-01 | E17: 2012-05-10
C19: PERIOADĂ | E19: PERIOADĂ
C20: PORNIRE | E20: TERMINARE
C26: 54 | E26: 9,800
C28: DECONTARE | E28: COMBUSTIBIL ANTERIOR
C29: consum/kilometru | E29: KILOMETRAJ

Sheet Date de jurnal
B1: JURNAL DE PARCURS
B5: DATĂ | C5: ACTIVITATE | D5: KILOMETRAJ 1 | E5: LOCAŢIE | F5: KILOMETRAJ 2 | G5: DESTINAŢIE | H5: DECONTARE | I5: LITRI | J5: COSTURI | K5: KILOMETRI | L5: Consum/100 km | M5: consum/kilometru | N5: NOTE
B6: 2012-05-01 | C6: Excursie | D6: 10,123 | E6: Braşov - Str. Principală | F6: 10,130 | I6: 15.56 | J6: 64.11 lei | K6: =kilometri -> 7 | L6: =IF(OR(LEN(date[[#This Row],[KILOMETRAJ 2]]),date[[#This Row],[KILOMETRAJ 1]]=""),"",IFERROR(date[[#This Row],[KILOMETRI]]/date[[#This Row],[LITRI]],"")) ->  | M6: =IF(date[[#This Row],[Consum/100 km]]="","",100*date[[#This Row],[COSTURI]]/date[[#This Row],[KILOMETRI]]) -> 
B7: 2012-05-01 | C7: Excursie | D7: 10,130 | E7: Birou | F7: 10,200 | G7: Strada Nucilor nr. 345 | H7: Da | K7: =kilometri -> 70 | L7: =IF(OR(LEN(date[[#This Row],[KILOMETRAJ 2]]),date[[#This Row],[KILOMETRAJ 1]]=""),"",IFERROR(date[[#This Row],[KILOMETRI]]/date[[#This Row],[LITRI]],"")) ->  | M7: =IF(date[[#This Row],[Consum/100 km]]="","",100*date[[#This Row],[COSTURI]]/date[[#This Row],[KILOMETRI]]) -> 
B8: 2012-05-01 | C8: Excursie | D8: 10,200 | E8: Otopeni | F8: 10,285 | G8: Birou | H8: Da | K8: =kilometri -> 85 | L8: =IF(OR(LEN(date[[#This Row],[KILOMETRAJ 2]]),date[[#This Row],[KILOMETRAJ 1]]=""),"",IFERROR(date[[#This Row],[KILOMETRI]]/date[[#This Row],[LITRI]],"")) ->  | M8: =IF(date[[#This Row],[Consum/100 km]]="","",100*date[[#This Row],[COSTURI]]/date[[#This Row],[KILOMETRI]]) -> 
B9: 2012-05-02 | C9: Excursie | D9: 10,285 | E9: Birou | F9: 10,450 | G9: Constanţa | H9: Da | K9: =kilometri -> 165 | L9: =IF(OR(LEN(date[[#This Row],[KILOMETRAJ 2]]),date[[#This Row],[KILOMETRAJ 1]]=""),"",IFERROR(date[[#This Row],[KILOMETRI]]/date[[#This Row],[LITRI]],"")) ->  | M9: =IF(date[[#This Row],[Consum/100 km]]="","",100*date[[#This Row],[COSTURI]]/date[[#This Row],[KILOMETRI]]) -> 
B10: 2012-05-02 | C10: Benzină | D10: 10,450 | E10: Basarabi | I10: 11.20 | J10: 55.42 lei | K10: =kilometri -> 650 | L10: =IF(OR(LEN(date[[#This Row],[KILOMETRAJ 2]]),date[[#This Row],[KILOMETRAJ 1]]=""),"",IFERROR(date[[#This Row],[KILOMETRI]]/date[[#This Row],[LITRI]],"")) -> 58.0 | M10: =IF(date[[#This Row],[Consum/100 km]]="","",100*date[[#This Row],[COSTURI]]/date[[#This Row],[KILOMETRI]]) -> 8.5
B11: 2012-05-02 | C11: Excursie | D11: 10,500 | E11: Constanţa | F11: 10,518 | G11: Birou | H11: Da | K11: =kilometri -> 18 | L11: =IF(OR(LEN(date[[#This Row],[KILOMETRAJ 2]]),date[[#This Row],[KILOMETRAJ 1]]=""),"",IFERROR(date[[#This Row],[KILOMETRI]]/date[[#This Row],[LITRI]],"")) ->  | M11: =IF(date[[#This Row],[Consum/100 km]]="","",100*date[[#This Row],[COSTURI]]/date[[#This Row],[KILOMETRI]]) -> 
B12: 2012-05-03 | C12: Excursie | D12: 10,518 | E12: Birou | F12: 10,745 | G12: Birou | H12: Da | K12: =kilometri -> 227 | L12: =IF(OR(LEN(date[[#This Row],[KILOMETRAJ 2]]),date[[#This Row],[KILOMETRAJ 1]]=""),"",IFERROR(date[[#This Row],[KILOMETRI]]/date[[#This Row],[LITRI]],"")) ->  | M12: =IF(date[[#This Row],[Consum/100 km]]="","",100*date[[#This Row],[COSTURI]]/date[[#This Row],[KILOMETRI]]) -> 
B13: 2012-05-04 | C13: Benzină | D13: 10,745 | E13: Braşov - Str. Principală | I13: 16.60 | J13: 69.24 lei | K13: =kilometri -> 295 | L13: =IF(OR(LEN(date[[#This Row],[KILOMETRAJ 2]]),date[[#This Row],[KILOMETRAJ 1]]=""),"",IFERROR(date[[#This Row],[KILOMETRI]]/date[[#This Row],[LITRI]],"")) -> 17.8 | M13: =IF(date[[#This Row],[Consum/100 km]]="","",100*date[[#This Row],[COSTURI]]/date[[#This Row],[KILOMETRI]]) -> 23.5
B14: 2012-05-04 | C14: Excursie | D14: 10,745 | E14: Birou | F14: 10,800 | G14: Piatra Neamţ | H14: Da | K14: =kilometri -> 55 | L14: =IF(OR(LEN(date[[#This Row],[KILOMETRAJ 2]]),date[[#This Row],[KILOMETRAJ 1]]=""),"",IFERROR(date[[#This Row],[KILOMETRI]]/date[[#This Row],[LITRI]],"")) ->  | M14: =IF(date[[#This Row],[Consum/100 km]]="","",100*date[[#This Row],[COSTURI]]/date[[#This Row],[KILOMETRI]]) -> 
B15: 2012-05-04 | C15: Excursie | D15: 10,800 | E15: Piatra Neamţ | F15: 10,875 | G15: Birou | H15: Da | K15: =kilometri -> 75 | L15: =IF(OR(LEN(date[[#This Row],[KILOMETRAJ 2]]),date[[#This Row],[KILOMETRAJ 1]]=""),"",IFERROR(date[[#This Row],[KILOMETRI]]/date[[#This Row],[LITRI]],"")) ->  | M15: =IF(date[[#This Row],[Consum/100 km]]="","",100*date[[#This Row],[COSTURI]]/date[[#This Row],[KILOMETRI]]) -> 
B16: 2012-05-07 | C16: Excursie | D16: 10,875 | E16: Birou | F16: 10,921 | G16: Strada Nucilor nr. 345 | H16: Da | K16: =kilometri -> 46 | L16: =IF(OR(LEN(date[[#This Row],[KILOMETRAJ 2]]),date[[#This Row],[KILOMETRAJ 1]]=""),"",IFERROR(date[[#This Row],[KILOMETRI]]/date[[#This Row],[LITRI]],"")) ->  | M16: =IF(date[[#This Row],[Consum/100 km]]="","",100*date[[#This Row],[COSTURI]]/date[[#This Row],[KILOMETRI]]) -> 
B17: 2012-05-07 | C17: Excursie | D17: 10,921 | E17: Otopeni | F17: 10,969 | G17: Birou | H17: Da | K17: =kilometri -> 48 | L17: =IF(OR(LEN(date[[#This Row],[KILOMETRAJ 2]]),date[[#This Row],[KILOMETRAJ 1]]=""),"",IFERROR(date[[#This Row],[KILOMETRI]]/date[[#This Row],[LITRI]],"")) ->  | M17: =IF(date[[#This Row],[Consum/100 km]]="","",100*date[[#This Row],[COSTURI]]/date[[#This Row],[KILOMETRI]]) -> 
B18: 2012-05-09 | C18: Excursie | D18: 10,969 | E18: Birou | F18: 11,000 | G18: Tulcea | H18: Da | K18: =kilometri -> 31 | L18: =IF(OR(LEN(date[[#This Row],[KILOMETRAJ 2]]),date[[#This Row],[KILOMETRAJ 1]]=""),"",IFERROR(date[[#This Row],[KILOMETRI]]/date[[#This Row],[LITRI]],"")) ->  | M18: =IF(date[[#This Row],[Consum/100 km]]="","",100*date[[#This Row],[COSTURI]]/date[[#This Row],[KILOMETRI]]) -> 
B19: 2012-05-09 | C19: Excursie | D19: 11,000 | E19: Tulcea | F19: 11,100 | G19: Acasă | H19: Nu | K19: =kilometri -> 100 | L19: =IF(OR(LEN(date[[#This Row],[KILOMETRAJ 2]]),date[[#This Row],[KILOMETRAJ 1]]=""),"",IFERROR(date[[#This Row],[KILOMETRI]]/date[[#This Row],[LITRI]],"")) ->  | M19: =IF(date[[#This Row],[Consum/100 km]]="","",100*date[[#This Row],[COSTURI]]/date[[#This Row],[KILOMETRI]]) -> 

Sheet calcule (hidden)
A1: *** Această foaie va rămâne ascunsă ***
I6: =OFFSET(I9,,AxăSecundară="Cost benzină") -> consum/kilometru
M7: 2
H8: Excursie | I8: Benzină | J8: Benzină | L8: Axă secundă: | M8: =REPT("Consum/100 km",M7=1)&REPT("Cost benzină",M7=2) -> Cost benzină
H9: Kilometri parcurşi | I9: Consum/100 km | J9: consum/kilometru
C10: Kilometri decontabili: | D10: =SUMIFS(date[KILOMETRI],date[DECONTARE],"Da",date[DATĂ],">="&ÎnceperePerioadă,date[DATĂ],"<="&ÎncheierePerioadă) -> 820 | F10: 1 | G10: =ÎnceperePerioadă -> 2012-05-01 | H10: =SUMIFS(date[KILOMETRI],date[DATĂ],G10,date[ACTIVITATE],$H$8) -> 162 | I10: =IFERROR(AVERAGEIFS(date[Consum/100 km],date[DATĂ],G10,date[ACTIVITATE],$I$8),NA()) ->  | J10: =IFERROR(AVERAGEIFS(date[consum/kilometru],date[DATĂ],G10,date[ACTIVITATE],$J$8),NA()) -> 
C11: Decontare totală: | D11: =D10*RambursarePerKm/100 -> 442.80 lei | F11: 2 | G11: =G10+1 -> 2012-05-02 | H11: =SUMIFS(date[KILOMETRI],date[DATĂ],G11,date[ACTIVITATE],$H$8) -> 183 | I11: =IFERROR(AVERAGEIFS(date[Consum/100 km],date[DATĂ],G11,date[ACTIVITATE],$I$8),NA()) -> 58.0 | J11: =IFERROR(AVERAGEIFS(date[consum/kilometru],date[DATĂ],G11,date[ACTIVITATE],$J$8),NA()) -> 8.5
F12: 3 | G12: 2012-05-03 | H12: =SUMIFS(date[KILOMETRI],date[DATĂ],G12,date[ACTIVITATE],$H$8) -> 227 | I12: =IFERROR(AVERAGEIFS(date[Consum/100 km],date[DATĂ],G12,date[ACTIVITATE],$I$8),NA()) ->  | J12: =IFERROR(AVERAGEIFS(date[consum/kilometru],date[DATĂ],G12,date[ACTIVITATE],$J$8),NA()) -> 
F13: 4 | G13: 2012-05-04 | H13: =SUMIFS(date[KILOMETRI],date[DATĂ],G13,date[ACTIVITATE],$H$8) -> 130 | I13: =IFERROR(AVERAGEIFS(date[Consum/100 km],date[DATĂ],G13,date[ACTIVITATE],$I$8),NA()) -> 17.8 | J13: =IFERROR(AVERAGEIFS(date[consum/kilometru],date[DATĂ],G13,date[ACTIVITATE],$J$8),NA()) -> 23.5
F14: 5 | G14: 2012-05-05 | H14: =SUMIFS(date[KILOMETRI],date[DATĂ],G14,date[ACTIVITATE],$H$8) -> 0 | I14: =IFERROR(AVERAGEIFS(date[Consum/100 km],date[DATĂ],G14,date[ACTIVITATE],$I$8),NA()) ->  | J14: =IFERROR(AVERAGEIFS(date[consum/kilometru],date[DATĂ],G14,date[ACTIVITATE],$J$8),NA()) -> 
F15: 6 | G15: 2012-05-06 | H15: =SUMIFS(date[KILOMETRI],date[DATĂ],G15,date[ACTIVITATE],$H$8) -> 0 | I15: =IFERROR(AVERAGEIFS(date[Consum/100 km],date[DATĂ],G15,date[ACTIVITATE],$I$8),NA()) ->  | J15: =IFERROR(AVERAGEIFS(date[consum/kilometru],date[DATĂ],G15,date[ACTIVITATE],$J$8),NA()) -> 
F16: 7 | G16: 2012-05-07 | H16: =SUMIFS(date[KILOMETRI],date[DATĂ],G16,date[ACTIVITATE],$H$8) -> 94 | I16: =IFERROR(AVERAGEIFS(date[Consum/100 km],date[DATĂ],G16,date[ACTIVITATE],$I$8),NA()) ->  | J16: =IFERROR(AVERAGEIFS(date[consum/kilometru],date[DATĂ],G16,date[ACTIVITATE],$J$8),NA()) -> 
F17: 8 | G17: 2012-05-08 | H17: =SUMIFS(date[KILOMETRI],date[DATĂ],G17,date[ACTIVITATE],$H$8) -> 0 | I17: =IFERROR(AVERAGEIFS(date[Consum/100 km],date[DATĂ],G17,date[ACTIVITATE],$I$8),NA()) ->  | J17: =IFERROR(AVERAGEIFS(date[consum/kilometru],date[DATĂ],G17,date[ACTIVITATE],$J$8),NA()) -> 
F18: 9 | G18: 2012-05-09 | H18: =SUMIFS(date[KILOMETRI],date[DATĂ],G18,date[ACTIVITATE],$H$8) -> 131 | I18: =IFERROR(AVERAGEIFS(date[Consum/100 km],date[DATĂ],G18,date[ACTIVITATE],$I$8),NA()) ->  | J18: =IFERROR(AVERAGEIFS(date[consum/kilometru],date[DATĂ],G18,date[ACTIVITATE],$J$8),NA()) -> 
F19: 10 | G19: 2012-05-10 | H19: =SUMIFS(date[KILOMETRI],date[DATĂ],G19,date[ACTIVITATE],$H$8) -> 0 | I19: =IFERROR(AVERAGEIFS(date[Consum/100 km],date[DATĂ],G19,date[ACTIVITATE],$I$8),NA()) ->  | J19: =IFERROR(AVERAGEIFS(date[consum/kilometru],date[DATĂ],G19,date[ACTIVITATE],$J$8),NA()) -> 
F20: 11 | G20: 2012-05-11 | H20: =SUMIFS(date[KILOMETRI],date[DATĂ],G20,date[ACTIVITATE],$H$8) -> 0 | I20: =IFERROR(AVERAGEIFS(date[Consum/100 km],date[DATĂ],G20,date[ACTIVITATE],$I$8),NA()) ->  | J20: =IFERROR(AVERAGEIFS(date[consum/kilometru],date[DATĂ],G20,date[ACTIVITATE],$J$8),NA()) -> 
F21: 12 | G21: 2012-05-12 | H21: =SUMIFS(date[KILOMETRI],date[DATĂ],G21,date[ACTIVITATE],$H$8) -> 0 | I21: =IFERROR(AVERAGEIFS(date[Consum/100 km],date[DATĂ],G21,date[ACTIVITATE],$I$8),NA()) ->  | J21: =IFERROR(AVERAGEIFS(date[consum/kilometru],date[DATĂ],G21,date[ACTIVITATE],$J$8),NA()) -> 
F22: 13 | G22: 2012-05-13 | H22: =SUMIFS(date[KILOMETRI],date[DATĂ],G22,date[ACTIVITATE],$H$8) -> 0 | I22: =IFERROR(AVERAGEIFS(date[Consum/100 km],date[DATĂ],G22,date[ACTIVITATE],$I$8),NA()) ->  | J22: =IFERROR(AVERAGEIFS(date[consum/kilometru],date[DATĂ],G22,date[ACTIVITATE],$J$8),NA()) -> 
F23: 14 | G23: 2012-05-14 | H23: =SUMIFS(date[KILOMETRI],date[DATĂ],G23,date[ACTIVITATE],$H$8) -> 0 | I23: =IFERROR(AVERAGEIFS(date[Consum/100 km],date[DATĂ],G23,date[ACTIVITATE],$I$8),NA()) ->  | J23: =IFERROR(AVERAGEIFS(date[consum/kilometru],date[DATĂ],G23,date[ACTIVITATE],$J$8),NA()) -> 
F24: 15 | G24: 2012-05-15 | H24: =SUMIFS(date[KILOMETRI],date[DATĂ],G24,date[ACTIVITATE],$H$8) -> 0 | I24: =IFERROR(AVERAGEIFS(date[Consum/100 km],date[DATĂ],G24,date[ACTIVITATE],$I$8),NA()) ->  | J24: =IFERROR(AVERAGEIFS(date[consum/kilometru],date[DATĂ],G24,date[ACTIVITATE],$J$8),NA()) -> 
F25: 16 | G25: 2012-05-16 | H25: =SUMIFS(date[KILOMETRI],date[DATĂ],G25,date[ACTIVITATE],$H$8) -> 0 | I25: =IFERROR(AVERAGEIFS(date[Consum/100 km],date[DATĂ],G25,date[ACTIVITATE],$I$8),NA()) ->  | J25: =IFERROR(AVERAGEIFS(date[consum/kilometru],date[DATĂ],G25,date[ACTIVITATE],$J$8),NA()) -> 
F26: 17 | G26: 2012-05-17 | H26: =SUMIFS(date[KILOMETRI],date[DATĂ],G26,date[ACTIVITATE],$H$8) -> 0 | I26: =IFERROR(AVERAGEIFS(date[Consum/100 km],date[DATĂ],G26,date[ACTIVITATE],$I$8),NA()) ->  | J26: =IFERROR(AVERAGEIFS(date[consum/kilometru],date[DATĂ],G26,date[ACTIVITATE],$J$8),NA()) -> 
F27: 18 | G27: 2012-05-18 | H27: =SUMIFS(date[KILOMETRI],date[DATĂ],G27,date[ACTIVITATE],$H$8) -> 0 | I27: =IFERROR(AVERAGEIFS(date[Consum/100 km],date[DATĂ],G27,date[ACTIVITATE],$I$8),NA()) ->  | J27: =IFERROR(AVERAGEIFS(date[consum/kilometru],date[DATĂ],G27,date[ACTIVITATE],$J$8),NA()) -> 
F28: 19 | G28: 2012-05-19 | H28: =SUMIFS(date[KILOMETRI],date[DATĂ],G28,date[ACTIVITATE],$H$8) -> 0 | I28: =IFERROR(AVERAGEIFS(date[Consum/100 km],date[DATĂ],G28,date[ACTIVITATE],$I$8),NA()) ->  | J28: =IFERROR(AVERAGEIFS(date[consum/kilometru],date[DATĂ],G28,date[ACTIVITATE],$J$8),NA()) -> 
F29: 20 | G29: 2012-05-20 | H29: =SUMIFS(date[KILOMETRI],date[DATĂ],G29,date[ACTIVITATE],$H$8) -> 0 | I29: =IFERROR(AVERAGEIFS(date[Consum/100 km],date[DATĂ],G29,date[ACTIVITATE],$I$8),NA()) ->  | J29: =IFERROR(AVERAGEIFS(date[consum/kilometru],date[DATĂ],G29,date[ACTIVITATE],$J$8),NA()) -> 
F30: 21 | G30: 2012-05-21 | H30: =SUMIFS(date[KILOMETRI],date[DATĂ],G30,date[ACTIVITATE],$H$8) -> 0 | I30: =IFERROR(AVERAGEIFS(date[Consum/100 km],date[DATĂ],G30,date[ACTIVITATE],$I$8),NA()) ->  | J30: =IFERROR(AVERAGEIFS(date[consum/kilometru],date[DATĂ],G30,date[ACTIVITATE],$J$8),NA()) -> 
F31: 22 | G31: 2012-05-22 | H31: =SUMIFS(date[KILOMETRI],date[DATĂ],G31,date[ACTIVITATE],$H$8) -> 0 | I31: =IFERROR(AVERAGEIFS(date[Consum/100 km],date[DATĂ],G31,date[ACTIVITATE],$I$8),NA()) ->  | J31: =IFERROR(AVERAGEIFS(date[consum/kilometru],date[DATĂ],G31,date[ACTIVITATE],$J$8),NA()) -> 
F32: 23 | G32: 2012-05-23 | H32: =SUMIFS(date[KILOMETRI],date[DATĂ],G32,date[ACTIVITATE],$H$8) -> 0 | I32: =IFERROR(AVERAGEIFS(date[Consum/100 km],date[DATĂ],G32,date[ACTIVITATE],$I$8),NA()) ->  | J32: =IFERROR(AVERAGEIFS(date[consum/kilometru],date[DATĂ],G32,date[ACTIVITATE],$J$8),NA()) -> 
F33: 24 | G33: 2012-05-24 | H33: =SUMIFS(date[KILOMETRI],date[DATĂ],G33,date[ACTIVITATE],$H$8) -> 0 | I33: =IFERROR(AVERAGEIFS(date[Consum/100 km],date[DATĂ],G33,date[ACTIVITATE],$I$8),NA()) ->  | J33: =IFERROR(AVERAGEIFS(date[consum/kilometru],date[DATĂ],G33,date[ACTIVITATE],$J$8),NA()) -> 
F34: 25 | G34: 2012-05-25 | H34: =SUMIFS(date[KILOMETRI],date[DATĂ],G34,date[ACTIVITATE],$H$8) -> 0 | I34: =IFERROR(AVERAGEIFS(date[Consum/100 km],date[DATĂ],G34,date[ACTIVITATE],$I$8),NA()) ->  | J34: =IFERROR(AVERAGEIFS(date[consum/kilometru],date[DATĂ],G34,date[ACTIVITATE],$J$8),NA()) -> 
F35: 26 | G35: 2012-05-26 | H35: =SUMIFS(date[KILOMETRI],date[DATĂ],G35,date[ACTIVITATE],$H$8) -> 0 | I35: =IFERROR(AVERAGEIFS(date[Consum/100 km],date[DATĂ],G35,date[ACTIVITATE],$I$8),NA()) ->  | J35: =IFERROR(AVERAGEIFS(date[consum/kilometru],date[DATĂ],G35,date[ACTIVITATE],$J$8),NA()) -> 
F36: 27 | G36: 2012-05-27 | H36: =SUMIFS(date[KILOMETRI],date[DATĂ],G36,date[ACTIVITATE],$H$8) -> 0 | I36: =IFERROR(AVERAGEIFS(date[Consum/100 km],date[DATĂ],G36,date[ACTIVITATE],$I$8),NA()) ->  | J36: =IFERROR(AVERAGEIFS(date[consum/kilometru],date[DATĂ],G36,date[ACTIVITATE],$J$8),NA()) -> 
F37: 28 | G37: 2012-05-28 | H37: =SUMIFS(date[KILOMETRI],date[DATĂ],G37,date[ACTIVITATE],$H$8) -> 0 | I37: =IFERROR(AVERAGEIFS(date[Consum/100 km],date[DATĂ],G37,date[ACTIVITATE],$I$8),NA()) ->  | J37: =IFERROR(AVERAGEIFS(date[consum/kilometru],date[DATĂ],G37,date[ACTIVITATE],$J$8),NA()) -> 
F38: 29 | G38: 2012-05-29 | H38: =SUMIFS(date[KILOMETRI],date[DATĂ],G38,date[ACTIVITATE],$H$8) -> 0 | I38: =IFERROR(AVERAGEIFS(date[Consum/100 km],date[DATĂ],G38,date[ACTIVITATE],$I$8),NA()) ->  | J38: =IFERROR(AVERAGEIFS(date[consum/kilometru],date[DATĂ],G38,date[ACTIVITATE],$J$8),NA()) -> 
F39: 30 | G39: 2012-05-30 | H39: =SUMIFS(date[KILOMETRI],date[DATĂ],G39,date[ACTIVITATE],$H$8) -> 0 | I39: =IFERROR(AVERAGEIFS(date[Consum/100 km],date[DATĂ],G39,date[ACTIVITATE],$I$8),NA()) ->  | J39: =IFERROR(AVERAGEIFS(date[consum/kilometru],date[DATĂ],G39,date[ACTIVITATE],$J$8),NA()) -> 
F40: 31 | G40: 2012-05-31 | H40: =SUMIFS(date[KILOMETRI],date[DATĂ],G40,date[ACTIVITATE],$H$8) -> 0 | I40: =IFERROR(AVERAGEIFS(date[Consum/100 km],date[DATĂ],G40,date[ACTIVITATE],$I$8),NA()) ->  | J40: =IFERROR(AVERAGEIFS(date[consum/kilometru],date[DATĂ],G40,date[ACTIVITATE],$J$8),NA()) -> 
F41: 32 | G41: 2012-06-01 | H41: =SUMIFS(date[KILOMETRI],date[DATĂ],G41,date[ACTIVITATE],$H$8) -> 0 | I41: =IFERROR(AVERAGEIFS(date[Consum/100 km],date[DATĂ],G41,date[ACTIVITATE],$I$8),NA()) ->  | J41: =IFERROR(AVERAGEIFS(date[consum/kilometru],date[DATĂ],G41,date[ACTIVITATE],$J$8),NA()) -> 
F42: 33 | G42: 2012-06-02 | H42: =SUMIFS(date[KILOMETRI],date[DATĂ],G42,date[ACTIVITATE],$H$8) -> 0 | I42: =IFERROR(AVERAGEIFS(date[Consum/100 km],date[DATĂ],G42,date[ACTIVITATE],$I$8),NA()) ->  | J42: =IFERROR(AVERAGEIFS(date[consum/kilometru],date[DATĂ],G42,date[ACTIVITATE],$J$8),NA()) -> 
F43: 34 | G43: =G42+1 -> 2012-06-03 | H43: =SUMIFS(date[KILOMETRI],date[DATĂ],G43,date[ACTIVITATE],$H$8) -> 0 | I43: =IFERROR(AVERAGEIFS(date[Consum/100 km],date[DATĂ],G43,date[ACTIVITATE],$I$8),NA()) ->  | J43: =IFERROR(AVERAGEIFS(date[consum/kilometru],date[DATĂ],G43,date[ACTIVITATE],$J$8),NA()) -> 
F44: 35 | G44: 2012-06-04 | H44: =SUMIFS(date[KILOMETRI],date[DATĂ],G44,date[ACTIVITATE],$H$8) -> 0 | I44: =IFERROR(AVERAGEIFS(date[Consum/100 km],date[DATĂ],G44,date[ACTIVITATE],$I$8),NA()) ->  | J44: =IFERROR(AVERAGEIFS(date[consum/kilometru],date[DATĂ],G44,date[ACTIVITATE],$J$8),NA()) -> 
F45: 36 | G45: 2012-06-05 | H45: =SUMIFS(date[KILOMETRI],date[DATĂ],G45,date[ACTIVITATE],$H$8) -> 0 | I45: =IFERROR(AVERAGEIFS(date[Consum/100 km],date[DATĂ],G45,date[ACTIVITATE],$I$8),NA()) ->  | J45: =IFERROR(AVERAGEIFS(date[consum/kilometru],date[DATĂ],G45,date[ACTIVITATE],$J$8),NA()) -> 
F46: 37 | G46: 2012-06-06 | H46: =SUMIFS(date[KILOMETRI],date[DATĂ],G46,date[ACTIVITATE],$H$8) -> 0 | I46: =IFERROR(AVERAGEIFS(date[Consum/100 km],date[DATĂ],G46,date[ACTIVITATE],$I$8),NA()) ->  | J46: =IFERROR(AVERAGEIFS(date[consum/kilometru],date[DATĂ],G46,date[ACTIVITATE],$J$8),NA()) -> 
F47: 38 | G47: 2012-06-07 | H47: =SUMIFS(date[KILOMETRI],date[DATĂ],G47,date[ACTIVITATE],$H$8) -> 0 | I47: =IFERROR(AVERAGEIFS(date[Consum/100 km],date[DATĂ],G47,date[ACTIVITATE],$I$8),NA()) ->  | J47: =IFERROR(AVERAGEIFS(date[consum/kilometru],date[DATĂ],G47,date[ACTIVITATE],$J$8),NA()) -> 
F48: 39 | G48: 2012-06-08 | H48: =SUMIFS(date[KILOMETRI],date[DATĂ],G48,date[ACTIVITATE],$H$8) -> 0 | I48: =IFERROR(AVERAGEIFS(date[Consum/100 km],date[DATĂ],G48,date[ACTIVITATE],$I$8),NA()) ->  | J48: =IFERROR(AVERAGEIFS(date[consum/kilometru],date[DATĂ],G48,date[ACTIVITATE],$J$8),NA()) -> 
F49: 40 | G49: 2012-06-09 | H49: =SUMIFS(date[KILOMETRI],date[DATĂ],G49,date[ACTIVITATE],$H$8) -> 0 | I49: =IFERROR(AVERAGEIFS(date[Consum/100 km],date[DATĂ],G49,date[ACTIVITATE],$I$8),NA()) ->  | J49: =IFERROR(AVERAGEIFS(date[consum/kilometru],date[DATĂ],G49,date[ACTIVITATE],$J$8),NA()) -> 
F50: 41 | G50: 2012-06-10 | H50: =SUMIFS(date[KILOMETRI],date[DATĂ],G50,date[ACTIVITATE],$H$8) -> 0 | I50: =IFERROR(AVERAGEIFS(date[Consum/100 km],date[DATĂ],G50,date[ACTIVITATE],$I$8),NA()) ->  | J50: =IFERROR(AVERAGEIFS(date[consum/kilometru],date[DATĂ],G50,date[ACTIVITATE],$J$8),NA()) -> 
F51: 42 | G51: 2012-06-11 | H51: =SUMIFS(date[KILOMETRI],date[DATĂ],G51,date[ACTIVITATE],$H$8) -> 0 | I51: =IFERROR(AVERAGEIFS(date[Consum/100 km],date[DATĂ],G51,date[ACTIVITATE],$I$8),NA()) ->  | J51: =IFERROR(AVERAGEIFS(date[consum/kilometru],date[DATĂ],G51,date[ACTIVITATE],$J$8),NA()) -> 
F52: 43 | G52: 2012-06-12 | H52: =SUMIFS(date[KILOMETRI],date[DATĂ],G52,date[ACTIVITATE],$H$8) -> 0 | I52: =IFERROR(AVERAGEIFS(date[Consum/100 km],date[DATĂ],G52,date[ACTIVITATE],$I$8),NA()) ->  | J52: =IFERROR(AVERAGEIFS(date[consum/kilometru],date[DATĂ],G52,date[ACTIVITATE],$J$8),NA()) -> 
F53: 44 | G53: 2012-06-13 | H53: =SUMIFS(date[KILOMETRI],date[DATĂ],G53,date[ACTIVITATE],$H$8) -> 0 | I53: =IFERROR(AVERAGEIFS(date[Consum/100 km],date[DATĂ],G53,date[ACTIVITATE],$I$8),NA()) ->  | J53: =IFERROR(AVERAGEIFS(date[consum/kilometru],date[DATĂ],G53,date[ACTIVITATE],$J$8),NA()) -> 
F54: 45 | G54: 2012-06-14 | H54: =SUMIFS(date[KILOMETRI],date[DATĂ],G54,date[ACTIVITATE],$H$8) -> 0 | I54: =IFERROR(AVERAGEIFS(date[Consum/100 km],date[DATĂ],G54,date[ACTIVITATE],$I$8),NA()) ->  | J54: =IFERROR(AVERAGEIFS(date[consum/kilometru],date[DATĂ],G54,date[ACTIVITATE],$J$8),NA()) -> 
F55: 46 | G55: 2012-06-15 | H55: =SUMIFS(date[KILOMETRI],date[DATĂ],G55,date[ACTIVITATE],$H$8) -> 0 | I55: =IFERROR(AVERAGEIFS(date[Consum/100 km],date[DATĂ],G55,date[ACTIVITATE],$I$8),NA()) ->  | J55: =IFERROR(AVERAGEIFS(date[consum/kilometru],date[DATĂ],G55,date[ACTIVITATE],$J$8),NA()) -> 
F56: 47 | G56: 2012-06-16 | H56: =SUMIFS(date[KILOMETRI],date[DATĂ],G56,date[ACTIVITATE],$H$8) -> 0 | I56: =IFERROR(AVERAGEIFS(date[Consum/100 km],date[DATĂ],G56,date[ACTIVITATE],$I$8),NA()) ->  | J56: =IFERROR(AVERAGEIFS(date[consum/kilometru],date[DATĂ],G56,date[ACTIVITATE],$J$8),NA()) -> 
F57: 48 | G57: 2012-06-17 | H57: =SUMIFS(date[KILOMETRI],date[DATĂ],G57,date[ACTIVITATE],$H$8) -> 0 | I57: =IFERROR(AVERAGEIFS(date[Consum/100 km],date[DATĂ],G57,date[ACTIVITATE],$I$8),NA()) ->  | J57: =IFERROR(AVERAGEIFS(date[consum/kilometru],date[DATĂ],G57,date[ACTIVITATE],$J$8),NA()) -> 
F58: 49 | G58: 2012-06-18 | H58: =SUMIFS(date[KILOMETRI],date[DATĂ],G58,date[ACTIVITATE],$H$8) -> 0 | I58: =IFERROR(AVERAGEIFS(date[Consum/100 km],date[DATĂ],G58,date[ACTIVITATE],$I$8),NA()) ->  | J58: =IFERROR(AVERAGEIFS(date[consum/kilometru],date[DATĂ],G58,date[ACTIVITATE],$J$8),NA()) -> 
F59: 50 | G59: 2012-06-19 | H59: =SUMIFS(date[KILOMETRI],date[DATĂ],G59,date[ACTIVITATE],$H$8) -> 0 | I59: =IFERROR(AVERAGEIFS(date[Consum/100 km],date[DATĂ],G59,date[ACTIVITATE],$I$8),NA()) ->  | J59: =IFERROR(AVERAGEIFS(date[consum/kilometru],date[DATĂ],G59,date[ACTIVITATE],$J$8),NA()) -> 
F60: 51 | G60: 2012-06-20 | H60: =SUMIFS(date[KILOMETRI],date[DATĂ],G60,date[ACTIVITATE],$H$8) -> 0 | I60: =IFERROR(AVERAGEIFS(date[Consum/100 km],date[DATĂ],G60,date[ACTIVITATE],$I$8),NA()) ->  | J60: =IFERROR(AVERAGEIFS(date[consum/kilometru],date[DATĂ],G60,date[ACTIVITATE],$J$8),NA()) -> 
F61: 52 | G61: 2012-06-21 | H61: =SUMIFS(date[KILOMETRI],date[DATĂ],G61,date[ACTIVITATE],$H$8) -> 0 | I61: =IFERROR(AVERAGEIFS(date[Consum/100 km],date[DATĂ],G61,date[ACTIVITATE],$I$8),NA()) ->  | J61: =IFERROR(AVERAGEIFS(date[consum/kilometru],date[DATĂ],G61,date[ACTIVITATE],$J$8),NA()) -> 
F62: 53 | G62: 2012-06-22 | H62: =SUMIFS(date[KILOMETRI],date[DATĂ],G62,date[ACTIVITATE],$H$8) -> 0 | I62: =IFERROR(AVERAGEIFS(date[Consum/100 km],date[DATĂ],G62,date[ACTIVITATE],$I$8),NA()) ->  | J62: =IFERROR(AVERAGEIFS(date[consum/kilometru],date[DATĂ],G62,date[ACTIVITATE],$J$8),NA()) -> 
F63: 54 | G63: 2012-06-23 | H63: =SUMIFS(date[KILOMETRI],date[DATĂ],G63,date[ACTIVITATE],$H$8) -> 0 | I63: =IFERROR(AVERAGEIFS(date[Consum/100 km],date[DATĂ],G63,date[ACTIVITATE],$I$8),NA()) ->  | J63: =IFERROR(AVERAGEIFS(date[consum/kilometru],date[DATĂ],G63,date[ACTIVITATE],$J$8),NA()) -> 
F64: 55 | G64: 2012-06-24 | H64: =SUMIFS(date[KILOMETRI],date[DATĂ],G64,date[ACTIVITATE],$H$8) -> 0 | I64: =IFERROR(AVERAGEIFS(date[Consum/100 km],date[DATĂ],G64,date[ACTIVITATE],$I$8),NA()) ->  | J64: =IFERROR(AVERAGEIFS(date[consum/kilometru],date[DATĂ],G64,date[ACTIVITATE],$J$8),NA()) -> 
F65: 56 | G65: 2012-06-25 | H65: =SUMIFS(date[KILOMETRI],date[DATĂ],G65,date[ACTIVITATE],$H$8) -> 0 | I65: =IFERROR(AVERAGEIFS(date[Consum/100 km],date[DATĂ],G65,date[ACTIVITATE],$I$8),NA()) ->  | J65: =IFERROR(AVERAGEIFS(date[consum/kilometru],date[DATĂ],G65,date[ACTIVITATE],$J$8),NA()) -> 
F66: 57 | G66: 2012-06-26 | H66: =SUMIFS(date[KILOMETRI],date[DATĂ],G66,date[ACTIVITATE],$H$8) -> 0 | I66: =IFERROR(AVERAGEIFS(date[Consum/100 km],date[DATĂ],G66,date[ACTIVITATE],$I$8),NA()) ->  | J66: =IFERROR(AVERAGEIFS(date[consum/kilometru],date[DATĂ],G66,date[ACTIVITATE],$J$8),NA()) -> 
F67: 58 | G67: 2012-06-27 | H67: =SUMIFS(date[KILOMETRI],date[DATĂ],G67,date[ACTIVITATE],$H$8) -> 0 | I67: =IFERROR(AVERAGEIFS(date[Consum/100 km],date[DATĂ],G67,date[ACTIVITATE],$I$8),NA()) ->  | J67: =IFERROR(AVERAGEIFS(date[consum/kilometru],date[DATĂ],G67,date[ACTIVITATE],$J$8),NA()) -> 
F68: 59 | G68: 2012-06-28 | H68: =SUMIFS(date[KILOMETRI],date[DATĂ],G68,date[ACTIVITATE],$H$8) -> 0 | I68: =IFERROR(AVERAGEIFS(date[Consum/100 km],date[DATĂ],G68,date[ACTIVITATE],$I$8),NA()) ->  | J68: =IFERROR(AVERAGEIFS(date[consum/kilometru],date[DATĂ],G68,date[ACTIVITATE],$J$8),NA()) -> 
F69: 60 | G69: 2012-06-29 | H69: =SUMIFS(date[KILOMETRI],date[DATĂ],G69,date[ACTIVITATE],$H$8) -> 0 | I69: =IFERROR(AVERAGEIFS(date[Consum/100 km],date[DATĂ],G69,date[ACTIVITATE],$I$8),NA()) ->  | J69: =IFERROR(AVERAGEIFS(date[consum/kilometru],date[DATĂ],G69,date[ACTIVITATE],$J$8),NA()) -> 
